fUSD/lending_fUSD_20240409
["ID","MTS","AMOUNT","RATE_DAILY","PERIOD"]
[321992752,1712675462527,-500.0,0.0002,2]
[321992753,1712675462537,-504.71,0.0002,2]
[321992754,1712675462547,-500.0,0.0002,2]
[321992755,1712675462557,-888.13,0.0002,2]
[321992756,1712675462641,-1499.61,0.0002,2]
[321992757,1712675462650,-500.0,0.0002,2]
[321992758,1712675462659,-500.0,0.0002,2]
[321992759,1712675462669,-597.8,0.0002,2]
[321992760,1712675462678,-500.0,0.0002,2]
[321992761,1712675462687,-577.33,0.0002,2]
[321992762,1712675462696,-531.5,0.0002,2]
[321992763,1712675462706,-640.8,0.0002,2]
[321992764,1712675462715,-500.0,0.0002,2]
[321992765,1712675462726,-500.0,0.0002,2]
[321992766,1712675462736,-500.0,0.0002,2]
[321992767,1712675462745,-677.97,0.0002,2]
[321992768,1712675462754,-608.73,0.0002,2]
[321992769,1712675462763,-506.19,0.0002,2]
[321992770,1712675462772,-1417.85,0.0002,2]
[321992771,1712675462782,-529.05,0.0002,2]
[321992772,1712675462792,-500.0,0.0002,2]
[321992773,1712675462801,-500.0,0.0002,2]
[321992774,1712675462810,-500.0,0.0002,2]
[321992775,1712675462821,-1039.9,0.0002,2]
[321992776,1712675462831,-500.0,0.0002,2]
[321992777,1712675462840,-1583.33,0.0002,2]
[321992778,1712675462850,-696.51,0.0002,2]
[321992779,1712675462859,-500.0,0.0002,2]
[321992780,1712675462869,-500.0,0.0002,2]
[321992781,1712675462878,-939.29,0.0002,2]
[321992782,1712675462888,-1574.33,0.0002,2]
[321992783,1712675462898,-1464.35,0.0002,2]
[321992784,1712675462907,-500.0,0.0002,2]
[321992785,1712675462917,-500.0,0.0002,2]
[321992786,1712675462927,-565.89,0.0002,2]
[321992787,1712675462937,-1741.27,0.0002,2]
[321992788,1712675462946,-813.52,0.0002,2]
[321992789,1712675462955,-902.04,0.0002,2]
[321992790,1712675462965,-500.0,0.0002,2]
[321992791,1712675462975,-1259.53,0.0002,2]
[321992792,1712675462984,-528.58,0.0002,2]
[321992793,1712675462994,-500.0,0.0002,2]
[321992794,1712675463003,-267.40728225,0.0002,2]
[321992795,1712675463013,-1780.42,0.0002,2]
[321992796,1712675463022,-580.35,0.0002,2]
[321992797,1712675463031,-4260.31,0.0002,2]
[321992798,1712675463040,-500.0,0.0002,2]
[321992799,1712675463050,-500.0,0.0002,2]
[321992800,1712675463059,-500.0,0.0002,2]
[321992801,1712675463073,-826.11,0.0002,2]
[321992802,1712675463082,-532.8,0.0002,2]
[321992803,1712675463092,-623.69,0.0002,2]
[321992804,1712675463101,-584.3,0.0002,2]
[321992805,1712675463111,-1315.43,0.0002,2]
[321992806,1712675463120,-3173.31,0.0002,2]
[321992807,1712675463129,-902.67,0.0002,2]
[321992808,1712675463138,-500.0,0.0002,2]
[321992809,1712675463147,-500.0,0.0002,2]
[321992810,1712675463157,-500.0,0.0002,2]
[321992811,1712675463167,-500.0,0.0002,2]
[321992812,1712675463176,-1453.77,0.0002,2]
[321992813,1712675463186,-1529.03,0.0002,2]
[321992814,1712675463195,-500.0,0.0002,2]
[321992815,1712675463205,-619.24,0.0002,2]
[321992816,1712675463215,-500.0,0.0002,2]
[321992817,1712675463224,-7780.97,0.0002,2]
[321992818,1712675463233,-1358.7,0.0002,2]
[321992819,1712675463247,-2110.87,0.0002,2]
[321992820,1712675463257,-1625.07,0.0002,2]
[321992821,1712675463266,-500.0,0.0002,2]
[321992822,1712675463276,-617.25,0.0002,2]
[321992823,1712675463288,-1617.36,0.0002,2]
[321992824,1712675463296,-4341.36,0.0002,2]
[321992825,1712675463306,-3508.42,0.0002,2]
[321992826,1712675463321,-747.24,0.0002,2]
[321992827,1712675463332,-1520.95,0.0002,2]
[321992828,1712675463342,-279.48,0.0002,2]
[321992829,1712675463353,-865.38,0.0002,2]
[321992830,1712675463362,-500.0,0.0002,2]
[321992831,1712675463372,-23565.43,0.0002,2]
[321992832,1712675463382,-2426.37,0.0002,2]
[321992833,1712675463391,-500.0,0.0002,2]
[321992834,1712675463401,-854.87,0.0002,2]
[321992835,1712675463412,-500.0,0.0002,2]
[321992836,1712675463422,-1608.5,0.0002,2]
[321992837,1712675463431,-1328.25,0.0002,2]
[321992838,1712675463440,-801.11,0.0002,2]
[321992839,1712675463451,-3359.3,0.0002,2]
[321992840,1712675463462,-532.86,0.0002,2]
[321992841,1712675463471,-500.0,0.0002,2]
[321992842,1712675463482,-500.0,0.0002,2]
[321992843,1712675463493,-854.73,0.0002,2]
[321992844,1712675463502,-2855.7,0.0002,2]
[321992845,1712675463512,-709.14,0.0002,2]
[321992846,1712675463521,-2296.4,0.0002,2]
[321992847,1712675463532,-500.0,0.0002,2]
[321992848,1712675463543,-3246.01,0.0002,2]
[321992849,1712675463552,-976.72,0.0002,2]
[321992850,1712675463561,-564.45,0.0002,2]
[321992851,1712675463578,-1135.51,0.0002,2]
[321992852,1712675463587,-769.27,0.0002,2]
[321992853,1712675463596,-1309.65,0.0002,2]
[321992854,1712675463606,-1260.97,0.0002,2]
[321992855,1712675463616,-1106.89,0.0002,2]
[321992856,1712675463625,-8330.3,0.0002,2]
[321992857,1712675463635,-890.42,0.0002,2]
[321992858,1712675463644,-500.0,0.0002,2]
[321992859,1712675463654,-976.31,0.0002,2]
[321992860,1712675463663,-985.62,0.0002,2]
[321992861,1712675463674,-500.0,0.0002,2]
[321992862,1712675463684,-1691.49,0.0002,2]
[321992863,1712675463693,-500.0,0.0002,2]
[321992864,1712675463702,-1419.15,0.0002,2]
[321992865,1712675463711,-1121.45,0.0002,2]
[321992866,1712675463720,-22600.57,0.0002,2]
[321992867,1712675463730,-500.0,0.0002,2]
[321992868,1712675463739,-500.0,0.0002,2]
[321992869,1712675463748,-500.0,0.0002,2]
[321992870,1712675463757,-506.88,0.0002,2]
[321992871,1712675463766,-500.0,0.0002,2]
[321992872,1712675463775,-1714.47,0.0002,2]
[321992873,1712675463784,-909.75,0.0002,2]
[321992874,1712675463793,-1023.73,0.0002,2]
[321992875,1712675463803,-1814.08,0.0002,2]
[321992876,1712675463812,-772.21,0.0002,2]
[321992877,1712675463827,-500.0,0.0002,2]
[321992878,1712675463837,-1148.04,0.0002,2]
[321992879,1712675463846,-1944.62,0.0002,2]
[321992880,1712675463855,-3153.27,0.0002,2]
[321992881,1712675463864,-27189.57,0.0002,2]
[321992882,1712675463874,-1427.61,0.0002,2]
[321992883,1712675463883,-1903.46,0.0002,2]
[321992884,1712675463892,-500.0,0.0002,2]
[321992885,1712675463901,-2617.0,0.0002,2]
[321992886,1712675463910,-2382.21,0.0002,2]
[321992887,1712675463920,-909.48,0.0002,2]
[321992888,1712675463929,-1365.53,0.0002,2]
[321992889,1712675463938,-5457.25,0.0002,2]
[321992890,1712675463948,-5265.93,0.0002,2]
[321992891,1712675463957,-500.0,0.0002,2]
[321992892,1712675463966,-2322.11,0.0002,2]
[321992893,1712675463975,-500.0,0.0002,2]
[321992894,1712675463984,-1341.58,0.0002,2]
[321992895,1712675463994,-1108.14,0.0002,2]
[321992896,1712675464004,-500.0,0.0002,2]
[321992897,1712675464013,-2359.31,0.0002,2]
[321992898,1712675464021,-1923.66,0.0002,2]
[321992899,1712675464031,-500.0,0.0002,2]
[321992900,1712675464040,-10332.28,0.0002,2]
[321992901,1712675464050,-500.0,0.0002,2]
[321992902,1712675464060,-2859.52,0.0002,2]
[321992903,1712675464077,-500.0,0.0002,2]
[321992904,1712675464086,-2848.51,0.0002,2]
[321992905,1712675464096,-846.44,0.0002,2]
[321992906,1712675464106,-3804.41,0.0002,2]
[321992907,1712675464115,-3557.01,0.0002,2]
[321992908,1712675464124,-557.17,0.0002,2]
[321992909,1712675464133,-2317.69,0.0002,2]
[321992910,1712675464143,-734.99,0.0002,2]
[321992911,1712675464152,-7208.0,0.0002,2]
[321992912,1712675464162,-500.0,0.0002,2]
[321992913,1712675464171,-1986.32,0.0002,2]
[321992914,1712675464181,-1917.08,0.0002,2]
[321992915,1712675464190,-933.5,0.0002,2]
[321992916,1712675464199,-626.25,0.0002,2]
[321992917,1712675464208,-567.99,0.0002,2]
[321992918,1712675464216,-4868.84,0.0002,2]
[321992919,1712675464225,-2524.63,0.0002,2]
[321992920,1712675464236,-1794.21,0.0002,2]
[321992921,1712675464247,-1713.0,0.0002,2]
[321992922,1712675464257,-18164.51,0.0002,2]
[321992923,1712675464266,-928.85,0.0002,2]
[321992924,1712675464277,-500.0,0.0002,2]
[321992925,1712675464294,-500.0,0.0002,2]
[321992926,1712675464304,-1057.5,0.0002,2]
[321992927,1712675464313,-1078.44,0.0002,2]
[321992928,1712675464328,-500.0,0.0002,2]
[321992929,1712675464338,-1662.24,0.0002,2]
[321992930,1712675464348,-828.85,0.0002,2]
[321992931,1712675464357,-1383.61,0.0002,2]
[321992932,1712675464366,-500.0,0.0002,2]
[321992933,1712675464376,-1488.32,0.0002,2]
[321992934,1712675464385,-4033.32,0.0002,2]
[321992935,1712675464394,-733.66,0.0002,2]
[321992936,1712675464403,-558.98,0.0002,2]
[321992937,1712675464413,-500.0,0.0002,2]
[321992938,1712675464422,-913.34,0.0002,2]
[321992939,1712675464431,-689.72,0.0002,2]
[321992940,1712675464441,-1248.07,0.0002,2]
[321992941,1712675464451,-1196.64,0.0002,2]
[321992942,1712675464461,-5373.42,0.0002,2]
[321992943,1712675464471,-8430.92,0.0002,2]
[321992944,1712675464480,-11453.02,0.0002,2]
[321992945,1712675464489,-863.69,0.0002,2]
[321992946,1712675464498,-1110.62,0.0002,2]
[321992947,1712675464507,-500.0,0.0002,2]
[321992948,1712675464516,-500.0,0.0002,2]
[321992949,1712675464526,-1162.36,0.0002,2]
[321992950,1712675464535,-1798.52,0.0002,2]
[321992951,1712675464545,-1753.46,0.0002,2]
[321992952,1712675464554,-500.0,0.0002,2]
[321992953,1712675464563,-1726.06,0.0002,2]
[321992954,1712675464583,-4570.93,0.0002,2]
[321992955,1712675464592,-500.0,0.0002,2]
[321992956,1712675464603,-500.0,0.0002,2]
[321992957,1712675464612,-500.0,0.0002,2]
[321992958,1712675464623,-1530.46,0.0002,2]
[321992959,1712675464632,-4391.04,0.0002,2]
[321992960,1712675464642,-1868.72,0.0002,2]
[321992961,1712675464651,-7587.36,0.0002,2]
[321992962,1712675464661,-500.0,0.0002,2]
[321992963,1712675464671,-2577.59,0.0002,2]
[321992964,1712675464681,-4081.1,0.0002,2]
[321992965,1712675464690,-500.0,0.0002,2]
[321992966,1712675464700,-704.54,0.0002,2]
[321992967,1712675464709,-2582.33,0.0002,2]
[321992968,1712675464718,-3302.42445289,0.00020033,2]
[321992969,1712675464728,-22824.27119912,0.0002004,2]
[321992970,1712675464737,-200.0,0.00020054,2]
[321992971,1712675464747,-799.0,0.00020064,2]
[321992972,1712675464756,-2436.13415346,0.00020066,2]
[321992973,1712675464766,-500.0,0.00020091,2]
[321992974,1712675464774,-500.0,0.00020091,2]
[321992975,1712675464784,-500.0,0.00020091,2]
[321992976,1712675464794,-500.0,0.00020091,2]
[321992977,1712675464803,-500.0,0.00020091,2]
[321992978,1712675464813,-538.35,0.00020091,2]
[321992979,1712675464831,-500.0,0.00020091,2]
[321992980,1712675464842,-500.0,0.00020091,2]
[321992981,1712675464852,-500.0,0.00020091,2]
[321992982,1712675464861,-500.0,0.00020091,2]
[321992983,1712675464871,-500.0,0.00020091,2]
[321992984,1712675464880,-500.0,0.00020091,2]
[321992985,1712675464891,-500.0,0.00020091,2]
[321992986,1712675464901,-338.29433274,0.00020091,2]
[321992987,1712675464910,-500.0,0.00020091,2]
[321992988,1712675464920,-500.0,0.00020091,2]
[321992989,1712675464929,-500.0,0.00020091,2]
[321992990,1712675464941,-500.0,0.00020091,2]
[321992991,1712675464951,-500.0,0.00020091,2]
[321992992,1712675464960,-500.0,0.00020091,2]
[321992993,1712675464969,-500.0,0.00020091,2]
[321992994,1712675464979,-883.62,0.00020091,2]
[321992995,1712675464988,-500.0,0.00020091,2]
[321992996,1712675464998,-500.0,0.00020091,2]
[321992997,1712675465008,-500.0,0.00020091,2]
[321992998,1712675465018,-500.0,0.00020091,2]
[321992999,1712675465028,-173.71068202,0.00020091,2]
[321993000,1712675465038,-500.0,0.00020091,2]
[321993001,1712675465048,-500.0,0.00020091,2]
[321993002,1712675465059,-537.84,0.00020091,2]
[321993003,1712675465075,-500.0,0.00020091,2]
[321993004,1712675465085,-500.0,0.00020091,2]
[321993005,1712675465096,-500.0,0.00020091,2]
[321993006,1712675465107,-500.0,0.00020091,2]
[321993007,1712675465118,-500.0,0.00020091,2]
[321993008,1712675465128,-500.0,0.00020091,2]
[321993009,1712675465138,-500.0,0.00020091,2]
[321993010,1712675465148,-500.0,0.00020091,2]
[321993011,1712675465158,-500.0,0.00020091,2]
[321993012,1712675465168,-500.0,0.00020091,2]
[321993013,1712675465178,-500.0,0.00020091,2]
[321993014,1712675465188,-500.0,0.00020091,2]
[321993015,1712675465197,-500.0,0.00020091,2]
[321993016,1712675465205,-500.0,0.00020091,2]
[321993017,1712675465215,-1007.19,0.00020091,2]
[321993018,1712675465225,-500.0,0.00020091,2]
[321993019,1712675465235,-500.0,0.00020091,2]
[321993020,1712675465246,-500.0,0.00020091,2]
[321993021,1712675465256,-634.32,0.00020091,2]
[321993022,1712675465265,-507.73,0.00020091,2]
[321993023,1712675465275,-500.0,0.00020091,2]
[321993024,1712675465289,-500.0,0.00020091,2]
[321993025,1712675465299,-637.7,0.00020091,2]
[321993026,1712675465308,-500.0,0.00020091,2]
[321993027,1712675465321,-500.0,0.00020091,2]
[321993028,1712675465331,-500.0,0.00020091,2]
[321993029,1712675465341,-509.62,0.00020091,2]
[321993030,1712675465350,-500.0,0.00020091,2]
[321993031,1712675465361,-500.0,0.00020091,2]
[321993032,1712675465370,-500.0,0.00020091,2]
[321993033,1712675465380,-500.0,0.00020091,2]
[321993034,1712675465389,-500.0,0.00020091,2]
[321993035,1712675465400,-501.96,0.00020091,2]
[321993036,1712675465409,-500.0,0.00020091,2]
[321993037,1712675465418,-500.0,0.00020091,2]
[321993038,1712675465428,-500.0,0.00020091,2]
[321993039,1712675465437,-500.0,0.00020091,2]
[321993040,1712675465447,-500.0,0.00020091,2]
[321993041,1712675465456,-500.0,0.00020091,2]
[321993042,1712675465466,-653.61,0.00020091,2]
[321993043,1712675465475,-500.0,0.00020091,2]
[321993044,1712675465489,-420.98611053,0.00020091,2]
[321993045,1712675465498,-500.0,0.00020091,2]
[321993046,1712675465508,-500.0,0.00020091,2]
[321993047,1712675465518,-500.0,0.00020091,2]
[321993048,1712675465527,-500.0,0.00020091,2]
[321993049,1712675465538,-500.0,0.00020093,2]
[321993050,1712675465548,-1068.03,0.00020093,2]
[321993051,1712675465558,-500.0,0.00020093,2]
[321993052,1712675465572,-794.32,0.00020093,2]
[321993053,1712675465581,-561.23,0.00020093,2]
[321993054,1712675465593,-1098.95,0.00020093,2]
[321993055,1712675465603,-813.86,0.00020093,2]
[321993056,1712675465613,-597.11,0.00020093,2]
[321993057,1712675465623,-762.06,0.00020093,2]
[321993058,1712675465633,-795.9,0.00020093,2]
[321993059,1712675465644,-505.32,0.00020093,2]
[321993060,1712675465654,-1248.23,0.00020093,2]
[321993061,1712675465665,-500.0,0.00020093,2]
[321993062,1712675465678,-500.0,0.00020093,2]
[321993063,1712675465690,-577.69,0.00020093,2]
[321993064,1712675465701,-309.78,0.00020093,2]
[321993065,1712675465712,-500.0,0.00020093,2]
[321993066,1712675465724,-675.95,0.00020093,2]
[321993067,1712675465735,-500.0,0.00020093,2]
[321993068,1712675465746,-1174.93,0.00020093,2]
[321993069,1712675465757,-1021.94,0.00020093,2]
[321993070,1712675465768,-500.0,0.00020093,2]
[321993071,1712675465778,-728.71,0.00020093,2]
[321993072,1712675465789,-500.0,0.00020093,2]
[321993073,1712675465801,-524.39,0.00020093,2]
[321993074,1712675465811,-711.1,0.00020093,2]
[321993075,1712675465833,-784.53,0.00020093,2]
[321993076,1712675465842,-500.0,0.00020093,2]
[321993077,1712675465852,-623.09,0.00020093,2]
[321993078,1712675465862,-500.0,0.00020093,2]
[321993079,1712675465871,-821.8,0.00020093,2]
[321993080,1712675465879,-1226.71,0.00020093,2]
[321993081,1712675465889,-576.22,0.00020093,2]
[321993082,1712675465899,-839.19,0.00020093,2]
[321993083,1712675465908,-739.95,0.00020093,2]
[321993084,1712675465918,-500.0,0.00020093,2]
[321993085,1712675465928,-571.55,0.00020093,2]
[321993086,1712675465938,-1083.7,0.00020093,2]
[321993087,1712675465948,-500.0,0.00020093,2]
[321993088,1712675465958,-628.35,0.00020093,2]
[321993089,1712675465968,-500.0,0.00020093,2]
[321993090,1712675465979,-637.35,0.00020093,2]
[321993091,1712675465989,-500.0,0.00020093,2]
[321993092,1712675466000,-500.0,0.00020093,2]
[321993093,1712675466011,-500.0,0.00020093,2]
[321993094,1712675466021,-500.0,0.00020093,2]
[321993095,1712675466032,-500.0,0.00020094,2]
[321993096,1712675466042,-736.85,0.00020094,2]
[321993097,1712675466053,-500.0,0.00020094,2]
[321993098,1712675466063,-500.0,0.00020094,2]
[321993099,1712675466081,-664.47,0.00020094,2]
[321993100,1712675466091,-637.78,0.00020094,2]
[321993101,1712675466101,-500.0,0.00020094,2]
[321993102,1712675466112,-500.0,0.00020094,2]
[321993103,1712675466122,-629.97,0.00020094,2]
[321993104,1712675466132,-586.78,0.00020094,2]
[321993105,1712675466141,-500.0,0.00020094,2]
[321993106,1712675466151,-500.0,0.00020094,2]
[321993107,1712675466161,-532.64,0.00020094,2]
[321993108,1712675466171,-748.51,0.00020094,2]
[321993109,1712675466180,-612.72,0.00020094,2]
[321993110,1712675466190,-913.1,0.00020094,2]
[321993111,1712675466200,-427.0,0.000201,2]
[321993112,1712675466210,-1000.0,0.00020193,2]
[321993113,1712675466219,-1000.0,0.00020195,2]
[321993114,1712675466229,-3057.0,0.000202,2]
[321993115,1712675466241,-3906.46814454,0.0002022,2]
[321993116,1712675466252,-22824.27119912,0.00020255,2]
[321993117,1712675466261,-753.80125296,0.00020263,2]
[321993118,1712675466272,-6159.28472412,0.00020263,2]
[321993119,1712675466284,-898.23994483,0.00020263,2]
[321993120,1712675466295,-180.15,0.00020271,2]
[321993121,1712675466305,-796.42,0.00020273,2]
[321993122,1712675466315,-635.64,0.00020273,2]
[321993123,1712675466331,-508.37,0.00020273,2]
[321993124,1712675466341,-500.0,0.00020273,2]
[321993125,1712675466351,-500.0,0.00020273,2]
[321993126,1712675466362,-238.55954882,0.00020273,2]
[321993127,1712675466372,-637.93,0.00020273,2]
[321993128,1712675466382,-237.43470434,0.00020273,2]
[321993129,1712675466392,-694.7,0.00020273,2]
[321993130,1712675466403,-500.0,0.00020273,2]
[321993131,1712675466412,-556.79,0.00020273,2]
[321993132,1712675466421,-500.0,0.00020273,2]
[321993133,1712675466430,-704.4,0.00020273,2]
[321993134,1712675466439,-500.0,0.00020273,2]
[321993135,1712675466448,-500.0,0.00020273,2]
[321993136,1712675466458,-500.0,0.00020273,2]
[321993137,1712675466468,-500.0,0.00020273,2]
[321993138,1712675466477,-500.0,0.00020273,2]
[321993139,1712675466487,-500.0,0.00020273,2]
[321993140,1712675466496,-544.04,0.00020273,2]
[321993141,1712675466505,-266.34064061,0.00020273,2]
[321993142,1712675466514,-500.0,0.00020273,2]
[321993143,1712675466523,-500.0,0.00020273,2]
[321993144,1712675466532,-595.51,0.00020273,2]
[321993145,1712675466542,-500.0,0.00020273,2]
[321993146,1712675466551,-500.0,0.00020273,2]
[321993147,1712675466561,-500.0,0.00020273,2]
[321993148,1712675466574,-500.0,0.00020273,2]
[321993149,1712675466583,-656.73,0.00020273,2]
[321993150,1712675466593,-500.0,0.00020273,2]
[321993151,1712675466602,-534.98,0.00020273,2]
[321993152,1712675466611,-636.93,0.00020273,2]
[321993153,1712675466621,-500.0,0.00020273,2]
[321993154,1712675466630,-500.0,0.00020273,2]
[321993155,1712675466639,-500.0,0.00020273,2]
[321993156,1712675466648,-500.0,0.00020273,2]
[321993157,1712675466658,-181.02164021,0.00020273,2]
[321993158,1712675466668,-500.0,0.00020273,2]
[321993159,1712675466678,-699.79,0.00020273,2]
[321993160,1712675466689,-500.0,0.00020273,2]
[321993161,1712675466699,-500.0,0.00020273,2]
[321993162,1712675466709,-500.0,0.00020273,2]
[321993163,1712675466719,-573.36,0.00020273,2]
[321993164,1712675466729,-500.0,0.00020273,2]
[321993165,1712675466739,-754.07,0.00020273,2]
[321993166,1712675466749,-500.0,0.00020273,2]
[321993167,1712675466758,-470.27346126,0.00020273,2]
[321993168,1712675466768,-500.0,0.00020273,2]
[321993169,1712675466778,-500.0,0.00020273,2]
[321993170,1712675466789,-500.0,0.00020273,2]
[321993171,1712675466799,-519.45,0.00020273,2]
[321993172,1712675466809,-646.3,0.00020273,2]
[321993173,1712675466822,-543.63,0.00020273,2]
[321993174,1712675466833,-685.15,0.00020273,2]
[321993175,1712675466844,-500.0,0.00020273,2]
[321993176,1712675466854,-513.96,0.00020273,2]
[321993177,1712675466864,-598.43,0.00020273,2]
[321993178,1712675466877,-526.97,0.00020273,2]
[321993179,1712675467019,-1099.74,0.00020273,2]
[321993180,1712675467037,-150.0,0.00020273,2]
[321993181,1712675467048,-617.84,0.00020273,2]
[321993182,1712675467058,-500.0,0.00020273,2]
[321993183,1712675467070,-500.0,0.00020273,2]
[321993184,1712675467083,-537.97,0.00020273,2]
[321993185,1712675467094,-500.0,0.00020273,2]
[321993186,1712675467104,-500.0,0.00020273,2]
[321993187,1712675467115,-500.0,0.00020273,2]
[321993188,1712675467127,-500.0,0.00020273,2]
[321993189,1712675467137,-504.71,0.00020273,2]
[321993190,1712675467148,-500.0,0.00020273,2]
[321993191,1712675467159,-888.13,0.00020273,2]
[321993192,1712675467169,-1499.61,0.00020273,2]
[321993193,1712675467179,-371.30420543,0.00020273,2]
[321993194,1712675467190,-500.0,0.00020273,2]
[321993195,1712675467199,-597.8,0.00020273,2]
[321993196,1712675467210,-500.0,0.00020273,2]
[321993197,1712675467221,-577.33,0.00020273,2]
[321993198,1712675467231,-531.5,0.00020273,2]
[321993199,1712675467244,-640.8,0.00020273,2]
[321993200,1712675467254,-500.0,0.00020273,2]
[321993201,1712675467266,-500.0,0.00020273,2]
[321993202,1712675467277,-500.0,0.00020273,2]
[321993203,1712675467290,-677.97,0.00020273,2]
[321993204,1712675467300,-608.73,0.00020273,2]
[321993205,1712675467310,-506.19,0.00020273,2]
[321993206,1712675467324,-1417.85,0.00020273,2]
[321993207,1712675467334,-529.05,0.00020273,2]
[321993208,1712675467344,-500.0,0.00020273,2]
[321993209,1712675467353,-235.21226472,0.00020273,2]
[321993210,1712675467362,-343.36861879,0.00020273,2]
[321993211,1712675467374,-1039.9,0.00020273,2]
[321993212,1712675467384,-500.0,0.00020273,2]
[321993213,1712675467394,-1583.33,0.00020273,2]
[321993214,1712675467403,-696.51,0.00020273,2]
[321993215,1712675467413,-500.0,0.00020273,2]
[321993216,1712675467423,-500.0,0.00020273,2]
[321993217,1712675467433,-939.29,0.00020273,2]
[321993218,1712675467444,-1574.33,0.00020273,2]
[321993219,1712675467453,-1464.35,0.00020273,2]
[321993220,1712675467463,-500.0,0.00020273,2]
[321993221,1712675467473,-500.0,0.00020273,2]
[321993222,1712675467483,-565.89,0.00020273,2]
[321993223,1712675467493,-1741.27,0.00020273,2]
[321993224,1712675467502,-902.04,0.00020273,2]
[321993225,1712675467512,-813.52,0.00020273,2]
[321993226,1712675467522,-500.0,0.00020273,2]
[321993227,1712675467531,-1259.53,0.00020273,2]
[321993228,1712675467540,-528.58,0.00020273,2]
[321993229,1712675467550,-500.0,0.00020273,2]
[321993230,1712675467560,-1780.42,0.00020273,2]
[321993231,1712675467573,-4260.31,0.00020273,2]
[321993232,1712675467583,-500.0,0.00020273,2]
[321993233,1712675467593,-500.0,0.00020273,2]
[321993234,1712675467603,-500.0,0.00020273,2]
[321993235,1712675467612,-1534.35,0.00020273,2]
[321993236,1712675467622,-826.11,0.00020273,2]
[321993237,1712675467632,-532.8,0.00020273,2]
[321993238,1712675467641,-623.69,0.00020273,2]
[321993239,1712675467650,-584.3,0.00020273,2]
[321993240,1712675467660,-1336.28,0.00020273,2]
[321993241,1712675467669,-1315.43,0.00020273,2]
[321993242,1712675467680,-3173.31,0.00020273,2]
[321993243,1712675467689,-902.67,0.00020273,2]
[321993244,1712675467699,-500.0,0.00020273,2]
[321993245,1712675467708,-555.55920737,0.00020273,2]
[321993246,1712675467718,-500.0,0.00020273,2]
[321993247,1712675467727,-500.0,0.00020273,2]
[321993248,1712675467737,-1453.77,0.00020273,2]
[321993249,1712675467746,-1529.03,0.00020273,2]
[321993250,1712675467756,-500.0,0.00020273,2]
[321993251,1712675467765,-619.24,0.00020273,2]